[Event "76th Montenegro Championship 2024"]
[Site "Podgorica"]
[Date "2024.02.14"]
[Round "10.16"]
[White "Musovic, Armin"]
[Black "Kadic, Branislav"]
[Result "1-0"]
[ECO "A00"]
[WhiteElo "2268"]
[BlackElo "1970"]
[Annotator "TA"]
[PlyCount "103"]
[EventDate "2024.02.06"]
[EventType "swiss"]
[EventCountry "MNE"]
[SourceTitle "playchess.com"]
[Source "ChessBase"]
[SourceQuality "1"]
[TimeControl "40/5400+30:1800+30"]

{[%evp 9,103,19,39,-12,-6,-12,-12,-15,0,-16,0,-6,0,-8,-12,-5,21,12,31,15,37,26,47,22,48,34,47,43,85,93,102,111,125,131,133,79,69,76,137,152,150,138,178,185,180,176,181,188,187,181,174,69,61,64,56,50,189,191,505,369,433,172,177,185,185,185,185,173,185,145,185,185,185,185,185,185,265,265,336,334,336,258,583,577,583,583,583,583,575,568,546,518,696,696,807,804]} 1. a3 {[%emt 0:05:44]} Nf6 {[%emt 0:00:21]} 2. Nf3 {[%emt 0:00:04]} d5 {[%emt 0:00:10]} 3. d4 {[%emt 0:00:04]} c6 {[%emt 0:00:05]} 4. c4 {[%emt 0:00:04]} Bf5 {[%emt 0:00:32]} 5. Nc3 {[%emt 0:00:13]} e6 {[%emt 0:00:06]} 6. g3 {[%emt 0:00:13]} (6. Nh4 $14) 6... Be7 {[%emt 0:00:09]} 7. Bg2 {[%emt 0:00:13]} O-O {[%emt 0:00:07]} 8. O-O {[%emt 0:01:08] The position is equal.} Nbd7 {[%emt 0:00:17]} 9. Nd2 {[%emt 0:00:37]} h6 {[%emt 0:00:11]} 10. e4 {[%emt 0:00:18]} dxe4 {[%emt 0:00:12]} 11. Ndxe4 {[%emt 0:00:17]} Nxe4 {[%emt 0:00:12]} 12. Nxe4 {[%emt 0:00:09]} Bxe4 {[%emt 0:00:16]} 13. Bxe4 {[%emt 0:00:05]} Nf6 {[%emt 0:00:27]} 14. Bg2 {[%emt 0:00:18]} Qd7 {[%emt 0:00:16]} 15. Be3 {[%emt 0:00:36]} Rad8 {[%emt 0:01:54]} 16. Qf3 {[%emt 0:01:47]} Rfe8 {[%emt 0:14:29]} 17. Rac1 {[%emt 0:01:19]} Nh7 {[%emt 0:00:32]} 18. h4 {[%emt 0:00:41]} Bf6 {[%emt 0:03:41]} 19. Rfd1 {[%emt 0:00:13]} Qe7 {[%emt 0:00:31]} 20. b4 {[%emt 0:00:55]} Rd7 {[%emt 0:01:02]} 21. d5 {[%emt 0:04:51]} cxd5 {[%emt 0:01:34]} 22. cxd5 {[%emt 0:00:44]} ({White should play} 22. Bxa7 {Bc5 would now be deadly.} d4 23. c5) 22... b6 $16 {[%emt 0:01:33] Black is weak on the light squares} 23. dxe6 {[%emt 0:05:14]} Rxd1+ {[%emt 0:00:57]} (23... Qxe6 $142 24. Rxd7 Qxd7) 24. Qxd1 {[%emt 0:03:27]} Qxe6 {[%emt 0:00:47]} 25. Rc7 $1 {[%emt 0:01:12]} Re7 {[%emt 0:01:06] [#]} 26. Qd8+ {[%emt 0:00:33]} Re8 {[%emt 0:01:35]} 27. Qd5 {[%emt 0:05:57]} Qxd5 {[%emt 0:01:33]} 28. Bxd5 {[%emt 0:00:05] This pair of bishops is nice.} Re7 {[%emt 0:00:17]} 29. Rc8+ {[%emt 0:01:43]} Nf8 {[%emt 0:00:12] [#]} 30. Ra8 {[%emt 0:01:36]} (30. h5 $1 $18) 30... g5 $1 $14 {[%emt 0:00:56]} 31. a4 {[%emt 0:01:26] White is more active.} Kg7 {[%emt 0:00:44]} 32. a5 {[%emt 0:00:15] And now hxg5 would win.} Re5 {[%emt 0:04:09] This costs Black the game.} (32... gxh4 $14 33. a6 (33. axb6 axb6 34. gxh4 Re5 $14) 33... hxg3) 33. Bb3 {[%emt 0:02:06]} Ne6 $2 {[%emt 0:02:00]} (33... Re7 34. hxg5 (34. axb6 axb6 35. hxg5 hxg5 $18) 34... hxg5) 34. Rxa7 {[%emt 0:01:25]} bxa5 {[%emt 0:00:19]} 35. Rxa5 {[%emt 0:01:16]} (35. bxa5 gxh4 36. gxh4) 35... Re4 {[%emt 0:01:25]} 36. Bxe6 {[%emt 0:00:20]} fxe6 {[%emt 0:00:13]} 37. hxg5 {[%emt 0:00:05]} hxg5 $18 {[%emt 0:00:20][%mdl 4096] Endgame. KRB-KRB} 38. b5 {[%emt 0:01:34][%cal Bb4b5,Bb5b6][%mdl 32]} (38. Bxg5 $6 Rxb4 39. Ra7+ Kg6 $14) 38... Rb4 {[%emt 0:00:47]} 39. b6 {[%emt 0:00:49]} Kg6 {[%emt 0:00:27]} 40. Ra8 {[%emt 0:00:00] Dodges Bd8} Kf5 {[%emt 0:00:00]} 41. Rf8 {[%emt 0:02:56]} Kg6 {[%emt 0:02:18]} 42. Kf1 {[%emt 0:00:51]} Kg7 {[%emt 0:01:28]} (42... e5 $142 43. g4 e4) 43. Rc8 {[%emt 0:00:25]} Be5 {[%emt 0:01:00]} 44. Ke2 {[%emt 0:00:46]} ({Less strong is} 44. Bxg5 Rxb6 45. Rc4 Rb5 $16) 44... Kf7 {[%emt 0:02:12]} 45. Kd3 {[%emt 0:00:43]} ({Weaker is} 45. Bxg5 Rxb6 46. Rc4 Rb5 $16) 45... Bd6 {[%emt 0:01:16] [#] Repels Bc5} (45... Rb3+ {is tougher.} 46. Ke4 Bd6) 46. Rc7+ $1 {[%emt 0:01:07][%mdl 512] White is clearly winning.} Kf6 {[%emt 0:01:01]} 47. Rd7 {[%emt 0:00:42]} Be5 {[%emt 0:00:27]} 48. Bc5 {[%emt 0:03:53]} Rb1 {[%emt 0:01:54]} 49. Kc4 {[%emt 0:00:09]} Rb2 {[%emt 0:01:42]} 50. Rd3 {[%emt 0:02:32] Black must now prevent Rf3+.} Kf7 {[%emt 0:03:22]} 51. Rf3+ {[%emt 0:01:56]} Ke8 {[%emt 0:00:55]} 52. Re3 {[%emt 0:00:11] Weighted Error Value: White=0.21 (precise) /Black=0.37.  Mistake:       	White=3     	Black=5      Inaccurate:     	---       	Black=4      OK:         	White=20    	Black=11     Best:        	White=1     	Black=3      Strong:       	White=1     	Black=1} 1-0

[Event "76th Montenegro Championship 2024"]
[Site "Podgorica"]
[Date "2024.02.14"]
[Round "10.17"]
[White "Krstonijevic, Stjepan"]
[Black "Grbovic, Dino"]
[Result "1-0"]
[ECO "D00"]
[WhiteElo "2108"]
[BlackElo "1946"]
[Annotator "NA RC"]
[PlyCount "89"]
[EventDate "2024.02.06"]
[EventType "swiss"]
[EventCountry "MNE"]
[SourceTitle "playchess.com"]
[Source "ChessBase"]
[SourceQuality "1"]
[TimeControl "40/5400+30:1800+30"]

1. d4 {[%emt 0:06:44]} Nf6 {[%emt 0:00:07]} 2. Nc3 {[%emt 0:00:01]} d5 {[%emt 0:01:46]} 3. Bf4 {[%emt 0:00:07]} g6 {[%emt 0:01:01]} 4. Qd2 {[%emt 0:03:07]} Bf5 {[%emt 0:07:40]} 5. h3 {[%emt 0:00:52]} h5 {[%emt 0:08:18]} 6. e3 {[%emt 0:01:25]} Bg7 {[%emt 0:04:28]} 7. Bd3 {[%emt 0:05:50]} Bxd3 {[%emt 0:05:33]} 8. Qxd3 {[%emt 0:07:58]} c6 {[%emt 1:05:37]} 9. Nf3 {[%emt 0:00:16]} Nbd7 {[%emt 0:00:00]} 10. O-O {[%emt 0:02:26]} O-O {[%emt 0:00:00]} 11. Ne5 {[%emt 0:01:07]} Nxe5 {[%emt 0:00:00]} 12. Bxe5 {[%emt 0:00:04]} Nd7 {[%emt 0:00:00]} 13. Bxg7 {[%emt 0:01:05]} Kxg7 {[%emt 0:00:00]} 14. e4 {[%emt 0:01:10]} dxe4 {[%emt 0:00:00]} 15. Nxe4 {[%emt 0:01:20]} Nf6 {[%emt 0:00:00]} 16. Rfe1 {[%emt 0:09:42]} Nxe4 {[%emt 0:00:00]} 17. Qxe4 {[%emt 0:03:42]} e6 {[%emt 0:00:00]} 18. Qe5+ {[%emt 0:00:52]} Qf6 {[%emt 0:00:00]} 19. c3 {[%emt 0:00:47]} Rfd8 {[%emt 0:00:00]} 20. Qc7 {[%emt 0:00:20]} Rab8 {[%emt 0:00:00]} 21. Re3 {[%emt 0:01:00]} Rdc8 {[%emt 0:00:00]} 22. Qa5 {[%emt 0:00:35]} a6 {[%emt 0:00:00]} 23. Rae1 {[%emt 0:01:10]} Qd8 {[%emt 0:00:00]} 24. Qe5+ {[%emt 0:02:09]} Qf6 {[%emt 0:00:00]} 25. Qg3 {[%emt 0:02:17]} Qd8 {[%emt 0:00:00]} 26. Rxe6 {[%emt 0:33:02]} fxe6 {[%emt 0:00:00]} 27. Rxe6 {[%emt 0:00:02]} Qf6 {[%emt 0:00:00]} 28. Rxf6 Kxf6 {[%emt 0:00:00]} 29. Qd6+ {[%emt 0:01:52]} Kf7 {[%emt 0:00:00]} 30. Kh2 {[%emt 0:03:19]} Rf8 {[%emt 0:00:00]} 31. Qc7+ {[%emt 0:01:04]} Ke6 {[%emt 0:00:00]} 32. Kg3 {[%emt 0:02:22]} Kd5 {[%emt 0:02:16]} 33. Qe5+ {[%emt 0:06:25]} Kc4 {[%emt 0:00:27]} 34. Qe2+ {[%emt 0:00:58]} Kd5 {[%emt 0:00:08]} 35. Qe5+ {[%emt 0:01:42]} Kc4 {[%emt 0:00:01]} 36. Qe2+ {[%emt 0:00:50]} Kd5 {[%emt 0:00:01]} 37. Qc2 {[%emt 0:00:28]} Rf5 {[%emt 0:03:22]} 38. Qb3+ {[%emt 0:00:42]} Kd6 {[%emt 0:00:11]} 39. f3 {[%emt 0:00:10]} Rf6 {[%emt 0:04:15]} 40. h4 {[%emt 0:00:00]} Re6 {[%emt 0:00:00]} 41. Qb6 {[%emt 0:01:29]} Re7 {[%emt 0:05:37]} 42. c4 {[%emt 0:02:04]} Re2 {[%emt 0:04:51]} 43. d5 {[%emt 0:02:50]} g5 {[%emt 0:04:35]} 44. dxc6 {[%emt 0:01:45]} gxh4+ {[%emt 0:00:16]} 45. Kh3 {[%emt 0:00:16]} 1-0

[Event "76th Montenegro Championship 2024"]
[Site "Podgorica"]
[Date "2024.02.14"]
[Round "10.18"]
[White "Petrovic, Slavko"]
[Black "Loncar, Milenko"]
[Result "0-1"]
[ECO "A45"]
[WhiteElo "1836"]
[BlackElo "2026"]
[Annotator "NA RC"]
[PlyCount "64"]
[EventDate "2024.02.06"]
[EventType "swiss"]
[EventCountry "MNE"]
[SourceTitle "playchess.com"]
[Source "ChessBase"]
[SourceQuality "1"]
[TimeControl "40/5400+30:1800+30"]

1. d4 {[%emt 0:01:38]} d6 {[%emt 0:06:30]} 2. e3 {[%emt 0:02:34]} Nf6 {[%emt 0:00:12]} 3. Bd3 {[%emt 0:01:00]} g6 {[%emt 0:00:26]} 4. f4 {[%emt 0:00:32]} Bg7 {[%emt 0:00:28]} 5. Nf3 {[%emt 0:00:22]} c5 {[%emt 0:00:21]} 6. c3 {[%emt 0:00:58]} Bd7 {[%emt 0:00:20]} 7. O-O {[%emt 0:01:43]} Bc6 {[%emt 0:00:07]} 8. Qe2 {[%emt 0:01:32]} Nbd7 {[%emt 0:05:31]} 9. Nbd2 {[%emt 0:08:57]} a6 {[%emt 0:00:49]} 10. Ng5 {[%emt 0:09:00]} b5 {[%emt 0:02:36]} 11. f5 {[%emt 0:09:54]} h6 {[%emt 0:12:51]} 12. Ngf3 {[%emt 0:21:45]} gxf5 {[%emt 0:01:41]} 13. Bxf5 {[%emt 0:00:25]} Qb6 {[%emt 0:03:43]} 14. Kh1 {[%emt 0:01:50]} e6 {[%emt 0:01:32]} 15. Bc2 {[%emt 0:03:24]} O-O-O {[%emt 0:01:30]} 16. a4 {[%emt 0:00:47]} Rhg8 {[%emt 0:04:32]} 17. axb5 {[%emt 0:06:09]} axb5 {[%emt 0:01:18]} 18. Ne1 {[%emt 0:02:44]} Bh8 {[%emt 0:04:34]} 19. Ndf3 {[%emt 0:07:08]} Rg4 {[%emt 0:02:33]} 20. e4 {[%emt 0:06:18]} Nxe4 {[%emt 0:02:20]} 21. Be3 {[%emt 0:00:25]} Rdg8 {[%emt 0:04:09]} 22. dxc5 {[%emt 0:04:28]} dxc5 {[%emt 0:00:56]} 23. Rc1 {[%emt 0:00:32]} Be5 {[%emt 0:05:12]} 24. Bxe4 {[%emt 0:02:20]} Bxe4 {[%emt 0:01:18]} 25. Rf2 {[%emt 0:00:42]} Qc7 {[%emt 0:04:43]} 26. Nxe5 {[%emt 0:00:16]} Qxe5 {[%emt 0:01:30]} 27. Nf3 {[%emt 0:01:29]} Qb8 {[%emt 0:03:18]} 28. Rd1 {[%emt 0:00:15]} Qb7 {[%emt 0:03:30]} 29. Qd2 {[%emt 0:00:55]} Ne5 {[%emt 0:04:42]} 30. Ne1 {[%emt 0:00:54]} Nd3 {[%emt 0:08:48]} 31. Nf3 {[%emt 0:02:33]} Nxf2+ {[%emt 0:02:52]} 32. Qxf2 {[%emt 0:00:27]} Rxg2 {[%emt 0:00:32]} 0-1

[Event "76th Montenegro Championship 2024"]
[Site "Podgorica"]
[Date "2024.02.15"]
[Round "11.1"]
[White "Drasko, Milan"]
[Black "Petrov, Nikita"]
[Result "0-1"]
[ECO "D02"]
[WhiteElo "2339"]
[BlackElo "2563"]
[Annotator "RC"]
[PlyCount "152"]
[EventDate "2024.02.06"]
[EventType "swiss"]
[EventCountry "MNE"]
[SourceTitle "playchess.com"]
[Source "ChessBase"]
[SourceQuality "1"]
[TimeControl "40/5400+30:1800+30"]

1. Nf3 {[%emt 0:00:15]} d5 {[%emt 0:00:13]} 2. g3 {[%emt 0:00:31]} c6 {[%emt 0:00:47]} 3. Bg2 {[%emt 0:00:22]} Bg4 {[%emt 0:00:11]} 4. O-O {[%emt 0:00:39]} e6 {[%emt 0:00:25]} 5. d4 {[%emt 0:06:59]} Nf6 {[%emt 0:00:58]} 6. Nbd2 {[%emt 0:01:26]} Nbd7 {[%emt 0:01:18]} 7. Re1 {[%emt 0:01:37]} Be7 {[%emt 0:01:11]} 8. e4 {[%emt 0:00:55]} h6 {[%emt 0:00:16]} 9. c3 {[%emt 0:02:08]} O-O {[%emt 0:02:47]} 10. Qb3 {[%emt 0:02:57]} Qc7 {[%emt 0:05:09]} 11. exd5 {[%emt 0:04:40]} cxd5 {[%emt 0:00:08]} 12. Nf1 {[%emt 0:00:54]} Rfc8 {[%emt 0:01:52]} 13. Bf4 {[%emt 0:05:45]} Qd8 {[%emt 0:00:59]} 14. Qxb7 {[%emt 0:21:18]} a5 {[%emt 0:00:41]} 15. Qb5 {[%emt 0:06:00]} a4 {[%emt 0:10:50]} 16. Qd3 {[%emt 0:19:44]} a3 {[%emt 0:14:31]} 17. b3 {[%emt 0:03:35]} Bf5 {[%emt 0:00:24]} 18. Qe3 {[%emt 0:00:20]} Ne4 {[%emt 0:10:46]} 19. c4 {[%emt 0:04:58]} g5 {[%emt 0:05:43]} 20. Be5 {[%emt 0:00:19]} f6 {[%emt 0:04:06]} 21. g4 {[%emt 0:00:08]} Bxg4 {[%emt 0:00:08]} 22. Bg3 {[%emt 0:00:09]} f5 {[%emt 0:00:35]} 23. Be5 {[%emt 0:00:01]} Bxf3 {[%emt 0:16:25]} 24. Qxf3 {[%emt 0:02:23]} g4 {[%emt 0:06:34]} 25. Qe2 {[%emt 0:00:16]} Nxe5 {[%emt 0:00:54]} 26. dxe5 {[%emt 0:00:02]} Bb4 {[%emt 0:00:22]} 27. Red1 {[%emt 0:03:29]} Nc3 {[%emt 0:04:12]} 28. Qd2 {[%emt 0:00:20]} f4 {[%emt 0:01:34]} 29. cxd5 {[%emt 0:01:56]} Qg5 {[%emt 0:00:48]} 30. dxe6 {[%emt 0:07:35]} f3 {[%emt 0:00:25]} 31. Qxg5+ {[%emt 0:00:22]} hxg5 {[%emt 0:00:06]} 32. Rd7 {[%emt 0:00:06]} Ne2+ {[%emt 0:02:45]} 33. Kh1 {[%emt 0:00:01]} Bc3 {[%emt 0:04:17]} 34. Rad1 {[%emt 0:00:34]} Nf4 {[%emt 0:00:45]} 35. Ne3 {[%emt 0:01:20]} fxg2+ {[%emt 0:00:06]} 36. Kg1 {[%emt 0:00:07]} Bxe5 {[%emt 0:00:49]} 37. Nxg4 {[%emt 0:00:12]} Bg7 {[%emt 0:00:47]} 38. e7 {[%emt 0:01:18]} Re8 {[%emt 0:01:10]} 39. Rd8 {[%emt 0:01:22]} Ne6 {[%emt 0:00:17]} 40. Rxa8 {[%emt 0:00:00]} Rxa8 {[%emt 0:00:00]} 41. Kxg2 {[%emt 0:00:37]} Kf7 {[%emt 0:05:52]} 42. Rd7 {[%emt 0:00:33]} Re8 {[%emt 0:02:00]} 43. Ra7 {[%emt 0:00:13]} Bb2 {[%emt 0:00:13]} 44. Nh6+ {[%emt 0:00:23]} Kg6 {[%emt 0:03:42]} 45. Ng4 {[%emt 0:00:12]} Nf4+ {[%emt 0:01:04]} 46. Kf3 {[%emt 0:00:02]} Nd5 {[%emt 0:00:40]} 47. Ra6+ {[%emt 0:00:56]} Kf7 {[%emt 0:01:33]} 48. Ra5 {[%emt 0:00:31]} Nb4 {[%emt 0:01:49]} 49. Ne3 {[%emt 0:00:35]} Nxa2 {[%emt 0:04:45]} 50. Nc4 {[%emt 0:22:13]} Rb8 {[%emt 0:02:07]} 51. Ra7 {[%emt 0:01:53]} Rxb3+ {[%emt 0:01:46]} 52. Kg2 {[%emt 0:00:47]} Rd3 {[%emt 0:00:27]} 53. Rb7 {[%emt 0:00:13]} Bf6 {[%emt 0:02:53]} 54. Ra7 {[%emt 0:00:10]} Nb4 {[%emt 0:01:27]} 55. e8=Q+ {[%emt 0:04:10]} Kxe8 {[%emt 0:00:03]} 56. Rxa3 {[%emt 0:00:11]} Rd4 {[%emt 0:03:10]} 57. Ne3 {[%emt 0:00:28]} Nd3 {[%emt 0:01:31]} 58. h3 {[%emt 0:04:34]} Kf7 {[%emt 0:01:18]} 59. Nf5 {[%emt 0:01:55]} Rd7 {[%emt 0:00:41]} 60. h4 {[%emt 0:00:29]} gxh4 {[%emt 0:02:09]} 61. Ra4 {[%emt 0:00:34]} h3+ {[%emt 0:04:22]} 62. Kxh3 {[%emt 0:00:15]} Nxf2+ {[%emt 0:00:05]} 63. Kg2 {[%emt 0:00:18]} Nd3 {[%emt 0:00:18]} 64. Ra6 {[%emt 0:00:49]} Nc5 {[%emt 0:01:17]} 65. Rc6 {[%emt 0:00:48]} Ne4 {[%emt 0:00:44]} 66. Kf3 {[%emt 0:00:32]} Nd2+ {[%emt 0:00:33]} 67. Kf4 {[%emt 0:00:22]} Rd3 {[%emt 0:00:39]} 68. Rd6 {[%emt 0:01:10]} Bg5+ {[%emt 0:00:30]} 69. Kg4 {[%emt 0:00:25]} Ra3 {[%emt 0:00:32]} 70. Nh6+ {[%emt 0:01:08]} Kf8 {[%emt 0:00:22]} 71. Nf5 {[%emt 0:00:39]} Nf3 {[%emt 0:00:10]} 72. Rd5 {[%emt 0:00:45]} Bf6 {[%emt 0:00:10]} 73. Kf4 {[%emt 0:00:26]} Ng5 {[%emt 0:00:34]} 74. Nd6 {[%emt 0:00:35]} Ke7 {[%emt 0:01:08]} 75. Nf5+ {[%emt 0:00:15]} Kf7 {[%emt 0:00:12]} 76. Nd6+ {[%emt 0:00:45]} Ke6 {[%emt 0:00:30]} 0-1

[Event "76th Montenegro Championship 2024"]
[Site "Podgorica"]
[Date "2024.02.15"]
[Round "11.2"]
[White "Djukic, Nikola"]
[Black "Ivanovic, Bozidar"]
[Result "1-0"]
[ECO "C42"]
[WhiteElo "2529"]
[BlackElo "2403"]
[Annotator "RC"]
[PlyCount "159"]
[EventDate "2024.02.06"]
[EventType "swiss"]
[EventCountry "MNE"]
[SourceTitle "playchess.com"]
[Source "ChessBase"]
[SourceQuality "1"]
[TimeControl "40/5400+30:1800+30"]

1. e4 {[%emt 0:03:00]} e5 {[%emt 0:00:30]} 2. Nf3 {[%emt 0:00:07]} Nf6 {[%emt 0:00:14]} 3. Nxe5 {[%emt 0:00:06]} d6 {[%emt 0:00:19]} 4. Nf3 {[%emt 0:00:05]} Nxe4 {[%emt 0:00:13]} 5. d4 {[%emt 0:00:06]} d5 {[%emt 0:00:45]} 6. Bd3 {[%emt 0:00:07]} Nc6 {[%emt 0:00:40]} 7. O-O {[%emt 0:00:08]} Be7 {[%emt 0:00:49]} 8. Nbd2 {[%emt 0:00:06]} Nxd2 {[%emt 0:02:50]} 9. Bxd2 {[%emt 0:00:10]} O-O {[%emt 0:01:55]} 10. c3 {[%emt 0:07:46]} Bg4 {[%emt 0:25:56]} 11. h3 {[%emt 0:00:41]} Be6 {[%emt 0:05:43]} 12. Qc2 {[%emt 0:03:15]} g6 {[%emt 0:03:44]} 13. Rae1 {[%emt 0:03:49]} Qd7 {[%emt 0:04:53]} 14. Re2 {[%emt 0:09:31]} Bf6 {[%emt 0:09:12]} 15. Rfe1 {[%emt 0:05:53]} Bg7 {[%emt 0:04:04]} 16. Ng5 {[%emt 0:15:27]} Rae8 {[%emt 0:02:10]} 17. Nxe6 {[%emt 0:05:53]} Rxe6 {[%emt 0:00:17]} 18. Rxe6 {[%emt 0:00:07]} fxe6 {[%emt 0:00:07]} 19. f4 {[%emt 0:06:05]} Qd6 {[%emt 0:06:07]} 20. Bc1 {[%emt 0:01:19]} Nd8 {[%emt 0:02:14]} 21. h4 {[%emt 0:05:01]} Bh6 {[%emt 0:02:15]} 22. g3 {[%emt 0:00:47]} Rf7 {[%emt 0:07:55]} 23. Qe2 {[%emt 0:02:57]} Bg7 {[%emt 0:01:23]} 24. Kg2 {[%emt 0:06:05]} Bf6 {[%emt 0:00:42]} 25. h5 {[%emt 0:00:52]} Rg7 {[%emt 0:04:19]} 26. Qg4 {[%emt 0:00:58]} Kf7 {[%emt 0:00:17]} 27. Rh1 {[%emt 0:02:48]} Nc6 {[%emt 0:00:08]} 28. hxg6+ {[%emt 0:07:14]} hxg6 {[%emt 0:00:22]} 29. Rh8 {[%emt 0:00:15]} Ne7 {[%emt 0:00:25]} 30. Qh3 {[%emt 0:00:09]} Rg8 {[%emt 0:01:24]} 31. Rh7+ {[%emt 0:01:20]} Rg7 {[%emt 0:00:52]} 32. g4 {[%emt 0:00:14]} Qd8 {[%emt 0:02:33]} 33. Be3 {[%emt 0:05:39]} Rxh7 {[%emt 0:00:54]} 34. Qxh7+ {[%emt 0:00:06]} Bg7 {[%emt 0:00:06]} 35. Bf2 {[%emt 0:05:09]} Qh8 {[%emt 0:05:28]} 36. Qxh8 {[%emt 0:00:07]} Bxh8 {[%emt 0:00:09]} 37. Bg3 {[%emt 0:05:38]} Bf6 {[%emt 0:04:13]} 38. Kf3 {[%emt 0:00:00]} c6 {[%emt 0:00:15]} 39. Bf2 {[%emt 0:00:00]} a6 {[%emt 0:00:50]} 40. Be3 {[%emt 0:00:00]} Ke8 {[%emt 0:00:00]} 41. Ke2 {[%emt 0:00:06]} Kf7 {[%emt 0:03:29]} 42. Kd2 {[%emt 0:00:07]} Ng8 {[%emt 0:05:58]} 43. Be2 {[%emt 0:06:42]} Be7 {[%emt 0:02:56]} 44. Kd3 {[%emt 0:00:24]} Bd6 {[%emt 0:00:34]} 45. b3 {[%emt 0:00:30]} Ne7 {[%emt 0:03:36]} 46. c4 {[%emt 0:00:14]} Ke8 {[%emt 0:01:57]} 47. Bd2 {[%emt 0:00:22]} Kf7 {[%emt 0:03:52]} 48. Bf3 {[%emt 0:01:25]} Ke8 {[%emt 0:01:56]} 49. Ke3 {[%emt 0:01:01]} Kd7 {[%emt 0:01:03]} 50. Be1 {[%emt 0:25:39]} dxc4 {[%emt 0:03:22]} 51. bxc4 {[%emt 0:00:00]} b5 {[%emt 0:00:05]} 52. Be2 {[%emt 0:00:00]} bxc4 {[%emt 0:04:01]} 53. Bxc4 {[%emt 0:00:00]} Nd5+ {[%emt 0:00:08]} 54. Ke4 {[%emt 0:00:00]} Nxf4 {[%emt 0:01:28]} 55. Bxa6 {[%emt 0:00:00]} Nd5 {[%emt 0:00:29]} 56. a4 {[%emt 0:00:00]} g5 {[%emt 0:01:09]} 57. Bd2 {[%emt 0:00:00]} Nf4 {[%emt 0:00:47]} 58. Bc4 {[%emt 0:04:00]} Kc7 {[%emt 0:05:28]} 59. Ba5+ {[%emt 0:00:00]} Kc8 {[%emt 0:00:00]} 60. Bb6 {[%emt 0:00:00]} Nd5 {[%emt 0:00:00]} 61. Ba5 {[%emt 0:00:00]} Bf4 {[%emt 0:00:00]} 62. Be1 {[%emt 0:00:00]} Kb7 {[%emt 0:00:00]} 63. a5 {[%emt 0:00:00]} Nc7 {[%emt 0:00:00]} 64. Bb4 {[%emt 0:00:00]} Nd5 {[%emt 0:00:40]} 65. a6+ {[%emt 0:00:00]} Ka8 {[%emt 0:01:21]} 66. Bc5 {[%emt 0:00:00]} Nc7 {[%emt 0:00:20]} 67. Kd3 {[%emt 0:00:00]} Nd5 {[%emt 0:00:45]} 68. Ke4 {[%emt 0:01:12]} Nc3+ {[%emt 0:00:21]} 69. Kf3 {[%emt 0:00:07]} Nd5 {[%emt 0:00:13]} 70. Be2 {[%emt 0:01:04]} Bb8 {[%emt 0:01:21]} 71. Bd1 {[%emt 0:01:45]} Ba7 {[%emt 0:00:43]} 72. Ba4 {[%emt 0:00:12]} Bxc5 {[%emt 0:00:15]} 73. Bxc6+ {[%emt 0:00:05]} Ka7 {[%emt 0:00:14]} 74. dxc5 {[%emt 0:00:12]} Nb4 {[%emt 0:01:09]} 75. Bb7 {[%emt 0:00:41]} Nc2 {[%emt 0:00:33]} 76. Ke4 {[%emt 0:00:18]} Nb4 {[%emt 0:00:04]} 77. Ke5 {[%emt 0:00:48]} Nd3+ {[%emt 0:00:30]} 78. Kd6 {[%emt 0:00:30]} Nb2 {[%emt 0:00:30]} 79. Kxe6 {[%emt 0:00:30]} Kb8 {[%emt 0:00:32]} 80. Kf5 {[%emt 0:00:21]} 1-0

[Event "76th Montenegro Championship 2024"]
[Site "Podgorica"]
[Date "2024.02.15"]
[Round "11.3"]
[White "Kalezic, Blazo"]
[Black "Kadric, Denis"]
[Result "1/2-1/2"]
[ECO "B31"]
[WhiteElo "2407"]
[BlackElo "2584"]
[Annotator "TA"]
[PlyCount "26"]
[EventDate "2024.02.06"]
[EventType "swiss"]
[EventCountry "MNE"]
[SourceTitle "playchess.com"]
[Source "ChessBase"]
[SourceQuality "1"]
[TimeControl "40/5400+30:1800+30"]

{[%evp 17,26,20,52,61,63,28,44,33,56,33,43]} 1. e4 {[%emt 0:00:05]} c5 {[%emt 0:00:13]} 2. Nf3 {[%emt 0:00:09]} Nc6 {[%emt 0:00:06]} 3. Bb5 {[%emt 0:00:10]} g6 {[%emt 0:00:11]} 4. O-O {[%emt 0:00:17]} Bg7 {[%emt 0:00:02]} 5. c3 {[%emt 0:00:25]} e5 {[%emt 0:00:36]} 6. d4 {[%emt 0:00:09]} cxd4 {[%emt 0:00:18]} 7. cxd4 {[%emt 0:00:08]} exd4 {[%emt 0:00:02]} 8. Bf4 {[%emt 0:00:37]} Nge7 {[%emt 0:02:19]} 9. Bd6 {[%emt 0:02:01]} O-O {[%emt 0:01:08]} 10. Re1 {[%emt 0:02:23][%mdl 1024] White has compensation.} a6 {[%emt 0:02:31]} 11. Bc4 {[%emt 0:01:36] White is much more active.} b5 {[%emt 0:04:02]} 12. Bd5 {[%emt 0:00:43]} Bb7 {[%emt 0:27:26]} 13. Nbd2 {[%emt 0:02:44]} h6 {[%emt 0:01:31] Black took control after the opening.   Weighted Error Value: White=0.12 (very precise) /Black=0.18 (very precise) .  Inaccurate:     	White=1     	---        OK:         	White=1     	Black=1} 1/2-1/2

[Event "76th Montenegro Championship 2024"]
[Site "Podgorica"]
[Date "2024.02.15"]
[Round "11.4"]
[White "Draskovic, Luka"]
[Black "Vukcevic, Nemanja"]
[Result "1/2-1/2"]
[ECO "B51"]
[WhiteElo "2481"]
[BlackElo "2275"]
[Annotator "TA"]
[PlyCount "34"]
[EventDate "2024.02.06"]
[EventType "swiss"]
[EventCountry "MNE"]
[SourceTitle "playchess.com"]
[Source "ChessBase"]
[SourceQuality "1"]
[TimeControl "40/5400+30:1800+30"]

{[%evp 9,34,18,26,29,23,26,31,23,31,30,43,30,43,29,16,33,45,0,0,-6,0,0,34,23,51,0,27]} 1. e4 {[%emt 1:31:00]} c5 {[%emt 0:01:57]} 2. Nf3 {[%emt 0:00:00]} d6 {[%emt 0:00:07]} 3. Bb5+ {[%emt 0:00:00]} Nd7 {[%emt 0:00:52]} 4. a4 {[%emt 0:00:00]} Ngf6 {[%emt 0:00:47]} 5. Nc3 {[%emt 0:00:00]} g6 {[%emt 0:00:36]} 6. a5 {[%emt 0:00:00]} Bg7 {[%emt 0:00:15]} 7. O-O {[%emt 0:00:00]} a6 {[%emt 0:00:45]} 8. Be2 {[%emt 0:00:00] White is slightly better.} O-O {[%emt 0:00:09]} 9. d3 {[%emt 0:00:00]} b5 {[%emt 0:01:36]} 10. axb6 {[%emt 0:00:00]} a5 {[%emt 0:05:04]} 11. Qd2 {[%emt 0:00:00]} Bb7 {[%emt 0:02:34]} 12. Qg5 {[%emt 0:00:00]} Qxb6 {[%emt 0:01:17][%cal Oc5c4]} 13. Qh4 {[%emt 0:00:00]} Bc6 {[%emt 0:00:10]} 14. Ra2 {[%emt 0:00:00]} Rfb8 {[%emt 0:10:45]} 15. Bh6 {[%emt 0:00:00]} Nf8 {[%emt 0:01:47]} 16. Bxg7 {[%emt 0:00:00]} Kxg7 {[%emt 0:00:06]} 17. Rfa1 {[%emt 0:00:00]} (17. Nd2 $14) 17... Qc7 {[%emt 0:06:33] Weighted Error Value: White=0.11 (very precise) /Black=0.09 (flawless) .  Mistake:       	White=1     	---        Inaccurate:     	White=1     	Black=3      OK:         	White=5     	Black=3      Best:        	White=1     	---} 1/2-1/2